bitfinex/quotes_ETHUSD_20250616
["timestamp","ask_amount","ask_price","bid_price","bid_amount"]
[1750075244504,30.16850198,2619.2,2619.0,3.81825067]
[1750075244712,19.37386238,2619.1,2619.0,3.81825067]
[1750075245226,10.0,2619.1,2619.0,3.81825067]
[1750075246247,10.55,2619.1,2619.0,3.81825067]
[1750075248031,10.7404,2619.0,2618.7,3.81859668]
[1750075248235,0.7404,2618.7,2618.6,3.81874774]
[1750075248393,16.32910198,2618.7,2618.6,3.81874774]
[1750075251635,16.72018818,2618.7,2618.6,3.81874774]
[1750075251940,23.85848818,2618.7,2618.6,3.81874774]
[1750075252935,0.7404,2618.6,2618.4,3.81907522]
[1750075253143,10.55,2618.6,2618.5,3.81898033]
[1750075253359,10.55,2618.6,2618.2,3.81941792]
[1750075253360,0.55,2618.6,2618.2,3.81941792]
[1750075253503,0.1904,2618.3,2618.2,5.76386878]
[1750075253709,0.1904,2618.3,2618.2,6.52766878]
[1750075256723,0.3910862,2618.7,2618.4,3.81912618]
[1750075256724,10.0,2618.6,2618.4,3.81912618]
[1750075256926,0.1904,2618.6,2618.5,4.58878033]
[1750075257129,5.96950198,2618.7,2618.6,3.81883449]
[1750075257503,10.0,2618.8,2618.7,3.81868866]
[1750075257740,5.96950198,2619.0,2618.9,3.81839703]
[1750075257913,5.96950198,2619.0,2618.9,4.60119703]
[1750075258118,15.96950198,2619.0,2618.9,4.60119703]
[1750075259705,15.96950198,2619.0,2618.9,5.47839703]
[1750075267938,10.55,2618.9,2618.3,0.8093]
[1750075268143,10.55,2618.9,2618.7,3.81862766]
[1750075268343,16.56960198,2618.8,2618.7,3.81862766]
[1750075268585,16.56960198,2618.8,2618.3,1.66]
[1750075268586,0.73658168,2618.7,2618.3,1.66]
[1750075268875,15.77910198,2618.8,2618.7,3.81868866]
[1750075269082,15.77910198,2618.8,2618.7,4.64728866]
[1750075269083,10.0,2618.8,2618.7,4.64728866]
[1750075269783,15.77910198,2618.8,2618.7,4.64728866]
[1750075271780,15.77910198,2618.8,2618.7,3.81868866]
[1750075275899,10.0,2618.8,2618.7,3.81868866]
[1750075276103,10.0,2618.8,2618.7,5.57624097]
[1750075276277,15.77910198,2618.8,2618.7,5.57624097]
[1750075278980,15.77910198,2618.8,2618.7,11.88224097]
[1750075281481,15.77910198,2618.8,2618.7,11.88124097]
[1750075286205,15.77910198,2618.8,2618.7,13.53924097]
[1750075288912,15.77910198,2618.8,2618.7,5.47668866]
[1750075290189,15.77910198,2618.8,2618.7,3.81868866]
[1750075290810,15.96950198,2618.8,2618.7,3.81868866]
[1750075291796,10.0,2618.8,2618.7,4.57008866]
[1750075292822,0.1904,2619.0,2618.9,3.81839703]
[1750075293007,7.89,2619.1,2618.9,3.81839703]
[1750075293008,7.89,2619.1,2619.0,3.81825124]
[1750075293212,0.1904,2619.3,2619.2,3.81795968]
[1750075294734,10.1904,2619.3,2619.2,3.81795968]
[1750075294903,10.1904,2619.3,2619.2,10.12095968]
[1750075295303,10.1904,2619.3,2619.2,3.81795968]
[1750075303539,0.1904,2619.3,2619.2,6.53858836]
[1750075303750,10.7792,2619.8,2619.7,3.81723098]
[1750075303909,16.55830198,2619.8,2619.7,3.81723098]
[1750075306407,16.55830198,2619.8,2619.4,10.1185637]
[1750075306408,0.55,2619.5,2619.4,3.81766816]
[1750075306628,23.42910198,2619.5,2619.4,3.81766816]
[1750075307030,25.79105218,2619.5,2619.4,3.81766816]
[1750075307332,11.349,2619.4,2619.3,3.81775991]
[1750075307537,11.349,2619.4,2618.3,3.81913063]
[1750075307538,1.349,2619.2,2619.1,3.81810545]
[1750075307733,19.20720396,2619.2,2619.1,3.81810545]
[1750075307935,1.349,2618.9,2618.8,3.81854284]
[1750075308132,23.42810198,2618.9,2618.8,3.81854284]
[1750075308714,11.349,2618.8,2618.7,3.81861186]
[1750075310339,1.5185,2618.7,2618.6,3.81876196]
[1750075310543,23.59860198,2618.7,2618.6,3.81876196]
[1750075311047,5.96950198,2618.7,2618.6,3.81876196]
[1750075311259,5.96950198,2618.7,2618.6,4.66132167]
[1750075313251,15.96950198,2618.7,2618.6,3.81876196]
[1750075315772,5.96950198,2618.7,2618.6,3.81876196]
[1750075316432,5.96950198,2618.7,2618.6,4.63346196]
[1750075317463,0.8016,2619.2,2618.8,3.81854284]
[1750075317464,5.77910198,2618.9,2618.8,3.81854284]
[1750075317960,15.77910198,2618.9,2618.8,3.81854284]
[1750075318165,5.77910198,2619.3,2619.1,3.81810545]
[1750075318343,5.77910198,2619.3,2619.2,3.81795968]
[1750075318540,15.77910198,2619.3,2619.2,3.81795968]
[1750075324095,16.32910198,2619.3,2619.2,3.81795968]
[1750075327663,17.12360198,2619.3,2619.2,3.81795968]
[1750075329108,10.55,2619.2,2618.3,0.7921]
[1750075329302,6.32910198,2618.4,2618.3,4.61137204]
[1750075329485,16.32910198,2618.4,2618.3,3.81927204]
[1750075329675,16.51950198,2618.4,2618.3,3.81927204]
[1750075329872,0.7404,2618.4,2618.3,4.82984818]
[1750075330186,6.51950198,2618.4,2618.3,4.82984818]
[1750075330590,6.51950198,2618.4,2617.9,15.01424052]
[1750075330591,10.55,2618.3,2616.3,0.8203]
[1750075330763,0.55,2617.1,2617.0,3.8210289]
[1750075330964,13.98134108,2617.1,2617.0,3.8210289]
[1750075331168,10.55,2617.0,2616.9,3.8212992]
[1750075331367,16.32910198,2617.0,2616.9,3.8212992]
[1750075332506,16.72087639,2617.0,2616.9,3.8212992]
[1750075332870,9.97414905,2617.0,2616.9,3.8212992]
[1750075333489,19.97414905,2617.0,2616.9,3.8212992]
[1750075334771,0.7741,2615.7,2613.5,7.59792007]
[1750075335017,0.55,2614.3,2614.0,0.51]
[1750075335195,9.03237464,2614.1,2614.0,4.3355547]
[1750075335367,19.58237464,2614.1,2614.0,4.13603671]
[1750075336126,9.58237464,2614.1,2614.0,4.71815344]
[1750075336284,0.93370487,2614.1,2614.0,4.71815344]
[1750075336470,0.55,2614.0,2613.7,3.82585642]
[1750075336679,10.55,2613.7,2613.6,3.82614018]
[1750075336924,19.58237464,2613.7,2613.6,4.1455397]
[1750075337336,19.58237464,2613.7,2613.6,3.82614018]
[1750075337619,19.58237464,2613.7,2613.5,3.82618772]
[1750075337831,21.5406121,2613.7,2613.5,3.82618772]
[1750075338027,21.5406121,2613.7,2613.6,3.82614018]
[1750075338190,10.55,2613.7,2613.6,3.82614018]
[1750075338374,0.55,2613.7,2613.6,3.82614018]
[1750075338725,0.55,2614.0,2613.9,3.82570105]
[1750075339926,9.03237464,2614.4,2613.9,3.82570105]
[1750075339927,0.7565,2615.0,2614.4,3.8249694]
[1750075340123,0.7565,2615.0,2614.9,3.82423802]
[1750075341079,1.3065,2615.0,2614.9,3.82423802]
[1750075341280,0.7565,2615.0,2614.9,3.82423802]
[1750075341813,9.03237464,2615.3,2615.1,3.82394554]
[1750075342013,9.03237464,2615.3,2615.2,3.82379932]
[1750075342186,21.2413721,2615.3,2615.2,3.82379932]
[1750075342391,20.6913721,2615.3,2615.2,3.82379932]
[1750075342587,0.20662037,2615.3,2615.2,3.82379932]
[1750075343115,10.59107078,2615.3,2615.2,3.82379932]
[1750075343281,10.75662037,2615.3,2615.2,3.82379932]
[1750075343477,10.20662037,2615.3,2615.2,3.82379932]
[1750075343682,0.20662037,2615.3,2615.2,3.82379932]
[1750075344616,0.55,2615.5,2615.4,3.82350692]
[1750075344803,10.0,2615.6,2615.5,3.82336073]
[1750075344980,7.5016,2615.8,2615.7,3.82306839]
[1750075345174,18.0516,2615.8,2615.7,3.82306839]
[1750075345493,10.5529602,2615.8,2615.7,3.82306839]
[1750075345719,10.93917221,2615.8,2615.7,3.82306839]
[1750075346017,20.93917221,2615.8,2615.7,3.82306839]
[1750075347718,29.97154685,2615.8,2615.7,3.82306839]
[1750075348886,11.71281201,2615.8,2615.7,3.82306839]
[1750075349603,10.7404,2615.7,2615.6,3.82319935]
[1750075349826,17.4484,2615.7,2615.6,3.82321455]
[1750075352914,0.1904,2615.7,2615.6,3.82321455]
[1750075353795,0.1904,2615.7,2615.6,3.86144332]
[1750075354021,0.1904,2615.7,2615.6,5.71344332]
[1750075354421,0.1904,2615.7,2615.6,6.7428324]
[1750075354640,0.7404,2615.7,2615.6,6.7428324]
[1750075354839,0.38621201,2615.8,2615.7,3.82306839]
[1750075355022,0.02,2615.9,2615.8,3.82292224]
[1750075355225,0.02,2615.9,2615.8,3.86114722]
[1750075357413,0.02,2615.9,2615.8,3.82292224]
[1750075357745,9.95857721,2615.9,2615.8,3.82292224]
[1750075358238,19.95857721,2615.9,2615.8,3.82292224]
[1750075358446,20.89908859,2615.9,2615.8,3.82292224]
[1750075358753,23.04399745,2615.9,2615.8,3.82292224]
[1750075359202,10.55,2615.8,2615.6,3.82312999]
[1750075359398,1.45620257,2615.7,2615.6,3.82312999]
[1750075359640,0.55,2615.6,2615.5,3.82331163]
[1750075359848,10.48857721,2615.6,2615.5,3.82331163]
[1750075360943,17.16357721,2615.6,2615.5,3.82331163]
[1750075365063,10.7404,2615.5,2615.4,3.8235019]
[1750075365223,11.45620257,2615.5,2615.4,3.8235019]
[1750075365765,0.7404,2615.4,2615.3,3.82365311]
[1750075366053,2.00522065,2615.4,2615.3,3.82365311]
[1750075366231,1.64660257,2615.4,2615.3,3.82365311]
[1750075366659,2.00522082,2615.4,2615.3,3.82365311]
[1750075366814,18.29860257,2615.4,2615.3,3.82365311]
[1750075367250,18.65722075,2615.4,2615.3,3.82365311]
[1750075367522,0.55,2615.2,2615.0,3.82399347]
[1750075367722,11.45620257,2615.1,2615.0,3.82399347]
[1750075368138,0.55,2615.0,2614.9,3.82417297]
[1750075368418,10.1912,2614.9,2614.8,3.82427404]
[1750075368632,11.09740257,2614.9,2614.8,3.82427404]
[1750075369040,11.45607756,2614.9,2614.8,3.82427404]
[1750075369320,11.45607756,2614.9,2614.4,0.1912]
[1750075369321,3.8248231,2614.5,2614.4,0.1912]
[1750075369453,0.8274,2614.3,2613.1,0.02]
[1750075369767,19.58237464,2613.3,2613.1,3.84679659]
[1750075369967,22.77560983,2613.3,2613.1,0.02]
[1750075370121,20.48857721,2613.3,2613.1,0.02]
[1750075370327,20.84749602,2613.3,2613.1,3.84687175]
[1750075370555,27.60348003,2613.3,2613.1,3.84679302]
[1750075370745,27.24457721,2613.3,2613.1,0.02]
[1750075371030,27.24457721,2613.3,2613.1,3.84681962]
[1750075371231,27.24457721,2613.3,2613.1,0.02]
[1750075371469,27.24457721,2613.3,2613.2,6.89632415]
[1750075372729,27.24457721,2613.3,2613.2,3.0695983]
[1750075372943,27.65642286,2613.3,2613.2,3.0695983]
[1750075373332,18.20020257,2613.3,2613.2,6.89632415]
[1750075373727,0.90620257,2613.3,2613.2,6.89632415]
[1750075373933,0.8148,2614.1,2613.9,3.82570105]
[1750075374257,10.8148,2614.1,2614.0,3.8255547]
[1750075374463,8.47913726,2614.1,2613.7,3.82594138]
[1750075374668,1.45933726,2614.0,2613.9,3.82568422]
[1750075374975,0.55,2613.9,2613.8,3.82584742]
[1750075375138,11.45933726,2613.9,2613.7,3.82591582]
[1750075375337,10.55,2613.7,2613.6,3.82611051]
[1750075375539,11.45933726,2613.7,2613.6,3.81427925]
[1750075375776,1.45933726,2613.7,2613.6,3.81427925]
[1750075376343,0.55,2613.7,2613.6,3.81427925]
[1750075376552,1.45933726,2613.7,2613.6,3.81427925]
[1750075377282,0.55,2613.7,2613.6,3.81427925]
[1750075377480,1.45933726,2613.7,2613.6,3.81427925]
[1750075377638,1.36790998,2613.7,2613.6,3.81427925]
[1750075377839,12.27724724,2613.7,2613.6,3.81427925]
[1750075378043,11.45933726,2613.7,2613.6,3.81427925]
[1750075378274,10.55,2613.7,2613.6,3.81427925]
[1750075379980,0.2812,2611.5,2610.9,0.1912]
[1750075380141,0.2812,2611.5,2610.2,0.19987654]
[1750075380142,0.55,2611.1,2610.2,0.19987654]
[1750075380340,7.28410099,2611.1,2610.8,3.8302436]
[1750075380540,10.0,2611.1,2611.0,3.82995021]
[1750075380742,10.55,2611.1,2611.0,3.82995021]
[1750075381076,0.90863808,2611.1,2611.0,3.82995021]
[1750075381241,0.9083714,2611.7,2610.9,0.85399981]
[1750075381447,0.55,2611.5,2611.4,3.82926877]
[1750075381643,1.4583714,2611.5,2611.4,3.82926877]
[1750075381947,0.55,2611.7,2611.6,3.8290703]
[1750075382147,1.4583714,2611.7,2611.6,3.8290703]
[1750075382340,0.55,2611.7,2611.6,3.8290703]
[1750075382543,0.93067556,2611.7,2611.6,3.8290703]
[1750075382772,0.93067556,2611.7,2611.6,4.98165516]
[1750075382957,0.38067556,2611.7,2611.6,4.98165516]
[1750075383261,0.55,2611.8,2611.7,3.67892368]
[1750075383470,0.7412,2611.8,2611.7,3.67892368]
[1750075384624,0.55,2611.8,2611.7,3.67892368]
[1750075384828,0.53,2611.8,2611.7,3.67892368]
[1750075384975,0.53,2611.8,2611.7,11.52112368]
[1750075385285,0.53,2611.8,2611.7,13.25117155]
[1750075385682,0.53,2611.8,2611.7,15.36717155]
[1750075386692,0.39008016,2612.3,2612.2,3.29819079]
[1750075386887,0.7412,2612.5,2612.4,3.82789771]
[1750075387218,0.1912,2612.5,2612.4,3.82789771]
[1750075388625,0.7412,2612.5,2612.4,3.82789771]
[1750075388917,1.12993902,2612.5,2612.4,3.82789771]
[1750075389724,0.93873902,2612.5,2612.4,3.82789771]
[1750075391643,1.70602302,2612.5,2612.4,3.82789771]
[1750075392337,0.93873902,2612.5,2612.4,3.82789771]
[1750075397444,0.02,2612.9,2612.8,3.82731169]
[1750075397644,0.02,2612.9,2612.8,12.96431169]
[1750075397803,0.02,2612.9,2612.8,13.73561169]
[1750075398609,0.02,2612.9,2612.8,13.92681169]
[1750075398842,0.02,2612.9,2612.8,15.70223637]
[1750075401042,0.02,2612.9,2612.8,6.56523637]
[1750075401247,0.02,2612.9,2612.8,13.93281169]
[1750075402011,0.02,2612.9,2612.8,13.91681169]
[1750075403810,0.02,2612.9,2612.8,4.78981169]
[1750075404016,0.02,2612.9,2612.8,13.71561169]
[1750075405637,0.02,2612.9,2612.8,12.93331169]
[1750075406140,0.02,2612.9,2612.8,3.82731169]
[1750075406336,0.2112,2612.9,2612.8,5.94631169]
[1750075406654,0.2112,2612.9,2612.8,12.93331169]
[1750075407258,0.02,2612.9,2612.8,12.93331169]
[1750075407562,0.57,2612.9,2612.8,12.93331169]
[1750075407712,0.02,2612.9,2612.8,12.93331169]
[1750075407917,0.02,2612.9,2612.8,14.81970637]
[1750075408936,0.02,2612.9,2612.8,13.12451169]
[1750075409755,0.02,2612.9,2612.8,13.11351169]
[1750075409959,0.02,2612.9,2612.8,3.82731169]
[1750075410160,0.02,2612.9,2612.8,12.84631169]
[1750075410824,0.02,2612.9,2612.8,3.82731169]
[1750075411165,0.02,2612.9,2612.8,12.84431169]
[1750075412232,0.02,2612.9,2612.8,14.53060637]
[1750075415044,0.02,2612.9,2612.8,5.51360637]
[1750075415248,0.02,2612.9,2612.8,12.81731169]
[1750075418168,0.02,2612.9,2612.8,13.00851169]
[1750075418836,0.02,2612.9,2612.8,13.81461169]
[1750075420633,0.02,2612.9,2612.8,13.78461169]
[1750075421771,0.02,2612.9,2612.8,23.78461169]
[1750075421940,0.02,2612.9,2612.8,27.45146347]
[1750075424690,0.02,2612.9,2612.8,8.49146347]
[1750075424853,0.02,2612.9,2612.8,6.87561169]
[1750075425233,0.02,2612.9,2612.8,13.75661169]
[1750075429137,0.02,2612.9,2612.8,23.75661169]
[1750075431343,0.02,2612.9,2612.8,13.72161169]
[1750075434384,0.02,2612.9,2612.8,6.87561169]
[1750075434581,0.02,2612.9,2612.8,12.89951169]
[1750075434784,0.02,2612.9,2612.8,6.06951169]
[1750075434987,0.02,2612.9,2612.8,4.01851169]
[1750075435171,0.02,2612.9,2612.8,12.82251169]
[1750075435684,0.02,2612.9,2612.8,4.01851169]
[1750075435872,0.02,2612.9,2612.8,12.82251169]
[1750075437985,0.02,2612.9,2612.8,13.22921568]
[1750075440172,0.02,2612.9,2612.8,12.82251169]
[1750075440620,0.02,2612.9,2612.8,12.79551169]
[1750075442271,0.02,2612.9,2612.8,5.80131169]
[1750075442467,10.40237099,2612.9,2612.8,3.82731169]
[1750075442672,20.40237099,2612.9,2612.8,3.82731169]
[1750075442919,22.44260809,2612.9,2612.8,3.82731169]
[1750075444774,10.7412,2612.8,2612.2,3.82819079]
[1750075445009,0.55,2612.7,2612.6,3.82760468]
[1750075445166,1.3717,2612.7,2612.6,3.82760468]
[1750075445373,0.7412,2612.6,2612.5,3.82761253]
[1750075445594,11.3717,2612.5,2612.4,3.82787342]
[1750075445814,0.55,2612.4,2612.3,3.82804425]
[1750075446179,20.43557099,2612.4,2612.3,3.82804425]
[1750075446521,1.5703,2612.3,2612.2,3.82819079]
[1750075446676,1.73797879,2612.3,2612.2,3.82819079]
[1750075446875,3.81742316,2612.3,2612.2,3.82819079]
[1750075447113,3.8174233,2612.3,2612.2,3.82819079]
[1750075447314,3.8174233,2612.3,2610.6,10.0]
[1750075447315,0.55,2612.0,2611.6,1.975]
[1750075447516,19.60647099,2612.0,2611.9,3.82863049]
[1750075448089,20.43557099,2612.0,2611.9,3.82863049]
[1750075448412,22.47912809,2612.0,2611.9,3.82863049]
[1750075448918,22.86167587,2612.0,2611.9,3.82863049]
[1750075449427,0.55,2611.8,2611.2,5.80462582]
[1750075449581,0.55,2611.5,2611.4,3.82936355]
[1750075451232,19.60647099,2611.9,2611.8,3.82877708]
[1750075451433,21.89263858,2611.9,2611.8,3.82877708]
[1750075452391,12.83616759,2611.9,2611.8,3.82877708]
[1750075452703,10.55,2611.9,2611.8,3.82877708]
[1750075453105,0.38254778,2612.0,2611.9,3.82863049]
[1750075453317,0.7618,2612.2,2612.1,3.82833735]
[1750075453738,10.7618,2612.2,2612.1,3.82833735]
[1750075454450,11.69699159,2612.2,2612.1,3.82833735]
[1750075454794,11.14699159,2612.2,2612.1,3.82833735]
[1750075455358,11.69699159,2612.2,2612.1,3.82833735]
[1750075455496,13.77233785,2612.2,2612.1,3.82833735]
[1750075456136,14.13114255,2612.2,2612.1,3.82833735]
[1750075456301,13.77233785,2612.2,2612.1,3.82833735]
[1750075457427,0.38519159,2612.2,2612.1,3.82833735]
[1750075457597,0.1912,2612.2,2612.1,3.82833735]
[1750075458346,10.55,2612.3,2612.2,3.82819079]
[1750075458347,10.5412,2612.3,2612.2,3.82819079]
[1750075460632,0.93277914,2612.3,2612.2,3.82819079]
[1750075460831,10.93277914,2612.3,2612.2,3.82819079]
[1750075462431,0.38277914,2612.3,2612.2,11.74068953]
[1750075462637,0.1912,2612.4,2612.3,3.82804425]
[1750075462834,0.1912,2612.4,2612.3,3.8663206]
[1750075462997,0.1912,2612.4,2612.3,3.82804425]
[1750075463197,0.7412,2612.4,2612.3,3.82804425]
[1750075463411,0.7412,2612.4,2612.3,5.76775136]
[1750075466320,0.7412,2612.4,2612.3,3.82804425]
[1750075471344,0.7412,2612.4,2612.3,3.86632045]
[1750075472167,0.55,2612.4,2612.3,3.86632045]
[1750075472917,0.55,2612.4,2612.3,3.82804425]
[1750075473788,0.55,2612.4,2612.3,3.8663193]
[1750075474369,0.55,2612.4,2612.3,3.82804425]
[1750075475125,0.55,2612.4,2612.3,10.55004425]
[1750075478462,0.55,2612.4,2612.3,11.14220968]
[1750075479798,0.55,2612.4,2612.3,10.55004425]
[1750075481160,0.38208678,2612.5,2612.3,10.55004425]
[1750075481359,0.1912,2612.6,2612.5,3.82775119]
[1750075481564,0.02,2612.9,2612.8,3.82731169]
[1750075481794,0.02,2612.9,2612.8,10.5505802]
[1750075482002,0.02,2612.9,2612.8,11.95011245]
[1750075482814,0.02,2612.9,2612.8,12.77571245]
[1750075483163,0.02,2612.9,2612.8,10.51231169]
[1750075483406,0.02,2613.9,2613.8,3.82584742]
[1750075483617,10.7799,2613.9,2613.8,3.82584742]
[1750075483795,1.69535918,2613.9,2613.5,3.82628658]
[1750075483973,1.69535918,2613.9,2613.6,3.82604448]
[1750075484314,1.69535918,2613.9,2613.2,6.699]
[1750075484315,9.05647099,2613.7,2613.2,6.699]
[1750075484517,9.05647099,2613.7,2613.6,3.82614018]
[1750075484676,19.44708431,2613.7,2613.6,3.82614018]
[1750075485008,10.39061332,2613.7,2613.6,3.82614018]
[1750075485332,0.94061332,2613.7,2613.6,3.82614018]
[1750075485487,0.39061332,2613.7,2613.6,3.82614018]
[1750075485686,11.3299,2613.9,2613.8,3.82584742]
[1750075485981,0.7799,2613.9,2613.8,3.82584742]
[1750075486197,11.3299,2613.9,2613.8,3.82584742]
[1750075486578,1.3299,2613.9,2613.8,3.82584742]
[1750075486912,11.3299,2613.9,2613.8,3.82584742]
[1750075487476,11.71940596,2613.9,2613.8,3.82584742]
[1750075489297,0.55,2613.8,2612.9,6.57673963]
[1750075489505,1.3241,2613.6,2613.5,3.82620527]
[1750075489669,1.3241,2613.6,2612.9,1.924]
[1750075489875,10.0,2613.7,2611.5,11.031]
[1750075489876,0.55,2613.2,2612.4,1.924]
[1750075490076,0.55,2613.0,2612.9,3.82716521]
[1750075490776,10.55,2613.0,2612.9,3.82716521]
[1750075494313,0.55,2613.0,2612.9,3.82716521]
[1750075499111,10.55,2613.0,2612.9,3.82716521]
[1750075503071,0.55,2612.8,2612.0,0.7885]
[1750075503331,0.55,2612.8,2611.9,5.70163049]
[1750075503332,0.7412,2612.0,2611.9,5.70163049]
[1750075503703,0.7412,2612.0,2611.9,14.09036831]
[1750075503704,0.1912,2612.0,2611.9,14.09036831]
[1750075504892,10.0,2612.7,2611.9,14.09036831]
[1750075504893,0.55,2612.6,2612.5,3.82775119]
[1750075505589,0.93130121,2612.6,2612.5,3.82775119]
[1750075506217,1.71730121,2612.6,2612.5,3.82775119]
[1750075506430,1.71730121,2612.6,2612.0,3.82840601]
[1750075506431,0.55,2612.5,2612.4,3.82789771]
[1750075506631,19.60647099,2612.5,2612.3,3.8279801]
[1750075506830,0.55,2612.3,2612.2,3.82810081]
[1750075507007,9.60647099,2612.3,2612.2,3.82810081]
[1750075507608,0.55,2612.1,2611.8,6.64]
[1750075507794,0.55,2612.1,2611.6,3.82894151]
[1750075507795,0.55,2612.1,2612.0,3.82837662]
[1750075507999,10.55,2612.0,2611.9,3.82854709]
[1750075513835,0.55,2611.9,2611.6,3.8290703]
[1750075514042,10.55,2611.6,2611.5,14.86019116]
[1750075514560,10.55,2611.6,2611.5,3.82919116]
[1750075517282,10.55,2611.6,2611.1,3.8497983]
[1750075517283,11.3144,2611.6,2611.1,0.02]
[1750075517571,19.60647099,2611.2,2611.1,3.84980353]
[1750075517931,20.75779718,2611.2,2611.1,0.02]
[1750075520728,0.55,2610.9,2610.5,0.1465296]
[1750075520943,10.7412,2610.6,2610.5,0.1465296]
[1750075521143,18.25293012,2610.6,2610.5,0.1465296]
[1750075521348,0.7412,2610.6,2610.5,3.97721337]
[1750075523637,0.1912,2610.6,2610.5,3.97721337]
[1750075523835,0.1912,2610.6,2610.5,4.83471941]
[1750075524052,7.89,2610.9,2610.8,3.8302436]
[1750075524254,8.0812,2610.9,2610.8,3.8302436]
[1750075524471,8.6312,2610.9,2610.8,3.8302436]
[1750075524656,18.6312,2610.9,2610.8,3.8302436]
[1750075527974,22.1371071,2610.9,2610.8,3.8302436]
[1750075528695,10.55,2610.8,2610.5,0.1465296]
[1750075528973,17.139,2610.7,2610.6,3.8304646]
[1750075530340,17.139,2610.7,2610.5,0.1465296]
[1750075530341,10.7412,2610.6,2610.5,0.1465296]
[1750075530555,12.32812078,2610.6,2610.5,0.1465296]
[1750075530776,12.32812078,2610.6,2610.1,0.02]
[1750075530777,1.323,2610.4,2610.1,0.02]
[1750075530977,1.323,2610.4,2610.1,3.85124434]
[1750075530978,19.60647099,2610.2,2610.1,3.85124434]
[1750075531763,19.60647099,2610.2,2610.1,0.02]
[1750075531962,22.30331809,2610.2,2610.1,0.02]
[1750075532557,22.30331809,2610.2,2610.1,3.85127083]
[1750075533541,22.30331809,2610.2,2610.1,0.02]
[1750075534146,23.12411809,2610.2,2610.1,0.02]
[1750075534547,27.86711754,2610.2,2610.1,0.02]
[1750075534946,24.03599349,2610.2,2610.1,0.02]
[1750075535490,24.03599349,2610.2,2609.7,3.83178443]
[1750075535491,10.55,2610.1,2609.7,3.83178443]
[1750075535674,0.55,2609.7,2609.5,3.83211253]
[1750075535847,0.55,2609.7,2609.3,3.83244548]
[1750075535848,0.7991,2609.4,2609.3,3.83244548]
[1750075536043,7.126,2609.4,2609.3,3.83244548]
[1750075536284,0.55,2609.4,2609.3,3.83244548]
[1750075536484,10.55,2609.4,2609.3,3.83244548]
[1750075537394,0.80906,2610.0,2609.3,3.83244548]
[1750075537395,0.8145,2610.3,2610.1,3.83127083]
[1750075537694,9.87097099,2610.3,2610.2,3.83112405]
[1750075537993,9.05647099,2610.9,2610.2,3.83112405]
[1750075538162,9.05647099,2610.6,2610.1,1.829]
[1750075538354,1.4556471,2610.5,2610.4,3.83083052]
[1750075538555,10.0,2610.5,2610.4,3.83083052]
[1750075539205,9.60647099,2610.6,2610.5,3.83068377]
[1750075542704,10.0,2610.7,2610.6,3.83053704]
[1750075542863,0.1912,2610.5,2610.4,4.62783052]
[1750075543599,0.1912,2610.5,2610.4,11.21883052]
[1750075544013,0.1912,2610.5,2610.4,4.62783052]
[1750075544387,0.7412,2610.5,2610.4,5.65983052]
[1750075544787,0.7412,2610.5,2610.4,3.83083052]
[1750075549139,9.24767099,2610.5,2610.4,3.83083052]
[1750075549432,21.77743809,2610.5,2610.4,3.83083052]
[1750075550691,22.13585728,2610.5,2610.4,3.83083052]
[1750075550893,22.6930991,2610.5,2610.4,3.83083052]
[1750075551317,23.05152231,2610.5,2610.4,3.83083052]
[1750075551633,22.13586123,2610.5,2610.4,3.83083052]
[1750075551928,21.77743809,2610.5,2610.4,3.83083052]
[1750075552296,22.13586042,2610.5,2610.4,3.83083052]
[1750075552515,21.77743809,2610.5,2610.4,3.83083052]
[1750075552914,11.09962253,2610.5,2610.4,3.83083052]
[1750075553112,10.7412,2610.5,2610.4,3.83083052]
[1750075554803,11.09959206,2610.5,2610.4,3.83083052]
[1750075555003,11.10063927,2610.5,2610.4,3.83083052]
[1750075555204,11.10057881,2610.5,2610.4,3.83083052]
[1750075555441,10.7412,2610.5,2610.4,3.83083052]
[1750075556137,0.55,2610.3,2610.2,3.83107197]
[1750075557221,0.9094133,2610.3,2610.2,3.83107197]
[1750075557423,0.90941161,2610.3,2609.7,0.7692]
[1750075557638,10.55,2610.1,2610.0,3.83141762]
[1750075558826,0.55,2610.3,2610.1,3.83127083]
[1750075559030,0.55,2610.3,2610.2,3.83112405]
[1750075559631,0.35939174,2610.4,2610.3,3.83097728]
[1750075559800,0.55,2610.4,2610.3,3.83097728]
[1750075560140,10.55,2610.4,2610.3,3.83097728]
[1750075560346,7.89,2610.5,2610.3,3.83097728]
[1750075560550,0.1912,2610.5,2610.4,3.83083052]
[1750075560711,10.0,2611.2,2610.9,3.8300969]
[1750075561045,15.2503,2611.3,2611.2,3.82965686]
[1750075561046,7.89,2611.3,2611.2,3.82965686]
[1750075561428,17.89,2611.3,2611.2,3.82965686]
[1750075561947,9.05647099,2611.5,2611.4,3.82936355]
[1750075562106,9.86377099,2611.7,2611.6,3.8290703]
[1750075562306,21.43817787,2611.7,2611.6,3.8290703]
[1750075562621,21.43817809,2611.7,2611.6,3.8290703]
[1750075562818,21.07893052,2611.7,2611.6,3.8290703]
[1750075563019,21.62893052,2611.7,2611.6,3.8290703]
[1750075563350,11.98816537,2611.7,2611.6,3.8290703]
[1750075563750,11.62893052,2611.7,2611.6,3.8290703]
[1750075564121,21.98817019,2611.7,2611.6,3.8290703]
[1750075564310,21.62893052,2611.7,2611.6,3.8290703]
[1750075564515,21.98816927,2611.7,2611.6,3.8290703]
[1750075564989,21.62893052,2611.7,2611.6,3.8290703]
[1750075565324,21.9881692,2611.7,2611.6,3.8290703]
[1750075565650,21.62893052,2611.7,2611.6,3.8290703]
[1750075566018,21.98816854,2611.7,2611.6,3.8290703]
[1750075566231,19.98515342,2611.7,2611.6,3.8290703]
[1750075566723,20.34439072,2611.7,2611.6,3.8290703]
[1750075566937,11.28791584,2611.7,2611.6,3.8290703]
[1750075567141,10.92868243,2611.7,2611.6,3.8290703]
[1750075568358,11.28789371,2611.7,2611.6,3.8290703]
[1750075568665,10.92868243,2611.7,2611.6,3.8290703]
[1750075568955,0.7412,2611.6,2611.3,1.801]
[1750075569254,9.79767099,2611.6,2611.5,3.82921692]
[1750075569454,9.60647099,2611.6,2611.5,3.82921692]
[1750075569847,10.37487099,2611.6,2611.5,3.82921692]
[1750075570154,10.73411353,2611.6,2611.5,3.82921692]
[1750075570354,13.04902839,2611.6,2611.5,3.82921692]